lending/lending_fUSD_20250224
["ID","MTS","AMOUNT","RATE_DAILY","PERIOD"]
[354280405,1740393045624,-150.0,0.00014996,2]
[354280406,1740393045633,-99426.11683306,0.00014999,2]
[354280407,1740393045642,-5100.0,0.00015,33]
[354280408,1740393045651,-150.0,0.00015,2]
[354280409,1740393045661,-150.0,0.00015,2]
[354280410,1740393045670,-1000.0,0.00015,2]
[354280411,1740393045680,-983.0,0.00015,3]
[354280412,1740393045690,-150.0,0.00015001,2]
[354280413,1740393045699,-150.0,0.00015003,2]
[354280414,1740393045709,-150.0,0.00015005,2]
[354280415,1740393045719,-150.0,0.00015009,2]
[354280416,1740393045728,-150.0,0.00015011,2]
[354280417,1740393045737,-150.0,0.00015012,2]
[354280418,1740393045747,-150.0,0.00015013,2]
[354280419,1740393045757,-150.0,0.00015013,2]
[354280420,1740393045766,-150.0,0.00015016,2]
[354280421,1740393045775,-150.0,0.00015016,2]
[354280422,1740393045785,-150.0,0.00015018,2]
[354280423,1740393045794,-150.0,0.00015019,2]
[354280424,1740393045804,-150.0,0.0001503,2]
[354280425,1740393045813,-150.0,0.00015033,2]
[354280426,1740393045823,-150.0,0.00015035,2]
[354280427,1740393045833,-150.0,0.00015036,2]
[354280428,1740393045844,-150.0,0.0001504,2]
[354280429,1740393045853,-150.0,0.00015041,2]
[354280430,1740393045861,-20295.0,0.00015041,2]
[354280431,1740393045873,-150.0,0.00015043,2]
[354280432,1740393045882,-150.0,0.00015046,2]
[354280433,1740393045891,-150.0,0.0001505,2]
[354280434,1740393045900,-1000.0,0.00015051,2]
[354280435,1740393045909,-1000.0,0.00015051,2]
[354280436,1740393045918,-1000.0,0.00015051,2]
[354280437,1740393045927,-1206.203801,0.00015051,2]
[354280438,1740393045936,-413.041367,0.00015051,2]
[354280439,1740393045945,-163.1750547,0.00015051,2]
[354280440,1740393045953,-155.85666799,0.00015052,2]
[354280441,1740393045962,-151.0,0.00015052,2]
[354280442,1740393045971,-1320.4097903,0.00015052,2]
[354280443,1740393045980,-1434.6157797,0.00015052,2]
[354280444,1740393045989,-1548.8217691,0.00015052,2]
[354280445,1740393045998,-1663.0277584,0.00015052,2]
[354280446,1740393046007,-457.7035636,0.00015052,2]
[354280447,1740393046016,-502.3657602,0.00015052,2]
[354280448,1740393046026,-547.0279569,0.00015052,2]
[354280449,1740393046035,-591.6901535,0.00015052,2]
[354280450,1740393046044,-163.1750547,0.00015052,2]
[354280451,1740393046053,-163.1750547,0.00015052,2]
[354280452,1740393046062,-163.1750547,0.00015052,2]
[354280453,1740393046071,-163.1750547,0.00015052,2]
[354280454,1740393046080,-1000.0,0.00015061,2]
[354280455,1740393046088,-1000.0,0.00015061,2]
[354280456,1740393046097,-927.18,0.00015061,2]
[354280457,1740393046104,-110994.39253089,0.00015062,5]
[354280458,1740393046113,-199.95879285,0.00015062,5]
[354280459,1740393046122,-1940.0,0.00015062,2]
[354280460,1740393046130,-19937629.22852872,0.00015062,15]
[354280461,1740393046138,-151.0,0.00015062,2]
[354280462,1740393046145,-151.0,0.00015062,2]
[354280463,1740393046153,-196.088219,0.00015062,2]
[354280464,1740393046161,-151.0,0.00015062,2]
[354280465,1740393046169,-151.0,0.00015062,2]
[354280466,1740393046177,-151.0,0.00015062,2]
[354280467,1740393046186,-151.0,0.00015062,2]
[354280468,1740393046196,-151.0,0.00015062,2]
[354280470,1740393046205,-151.883486,0.00015062,2]
[354280472,1740393046214,-151.0,0.00015062,2]
[354280474,1740393046223,-151.0,0.00015062,2]
[354280475,1740393046233,-151.0,0.00015062,2]
[354280476,1740393046242,-151.0,0.00015062,2]
[354280477,1740393046251,-2000.0,0.00015062,2]
[354280478,1740393046260,-200.0,0.00015062,2]
[354280479,1740393046269,-1000.0,0.00015062,2]
[354280480,1740393046278,-1000.0,0.00015062,2]
[354280481,1740393046287,-1000.0,0.00015062,2]
[354280482,1740393046296,-1000.0,0.00015062,2]
[354280483,1740393046305,-1000.0,0.00015062,2]
[354280484,1740393046314,-1000.0,0.00015062,2]
[354280485,1740393046323,-1000.0,0.00015062,2]
[354280486,1740393046332,-1000.0,0.00015062,2]
[354280487,1740393046342,-1000.0,0.00015062,2]
[354280488,1740393046351,-1000.0,0.00015062,2]
[354280489,1740393046360,-1000.0,0.00015062,2]
[354280490,1740393046369,-291.64435073,0.00015062,2]
[354280491,1740393046379,-151.0,0.00015062,2]
[354280492,1740393046388,-151.0,0.00015062,2]
[354280493,1740393046397,-151.0,0.00015062,2]
[354280494,1740393046407,-151.0,0.00015062,2]
[354280495,1740393046416,-265.30002885,0.00015062,2]
[354280496,1740393046425,-999.0,0.00015068,2]
[354280497,1740393046435,-500.0,0.00015073,2]
[354280498,1740393046444,-152.0,0.00015087,3]
[354280499,1740393046453,-150.0,0.000151,2]
[354280500,1740393046462,-206.19411432,0.000151,2]
[354280501,1740393046471,-927.18,0.00015198,2]
[354280502,1740393046480,-6817.02890617,0.000152,2]
[354280503,1740393046489,-500.0,0.0001531,2]
[354280504,1740393046498,-500.0,0.0001531,2]
[354280505,1740393046507,-500.0,0.0001531,2]
[354280506,1740393046515,-500.0,0.0001531,2]
[354280507,1740393046525,-500.0,0.0001531,2]
[354280508,1740393046534,-500.0,0.0001531,2]
[354280509,1740393046543,-500.0,0.0001531,2]
[354280510,1740393046552,-500.0,0.0001531,2]
[354280511,1740393046561,-500.0,0.0001531,2]
[354280512,1740393046570,-501.0,0.0001531,2]
[354280513,1740393046579,-500.0,0.0001531,2]
[354280514,1740393046589,-500.0,0.0001531,2]
[354280515,1740393046598,-500.0,0.0001531,2]
[354280516,1740393046607,-500.0,0.0001531,2]
[354280517,1740393046616,-950.0,0.0001531,2]
[354280518,1740393046625,-500.0,0.0001531,2]
[354280519,1740393046635,-500.0,0.0001531,2]
[354280520,1740393046644,-766.0,0.0001531,2]
[354280521,1740393046653,-927.18,0.00015335,2]
[354280522,1740393046662,-150.0,0.00015411,2]
[354280523,1740393046671,-150.0,0.00015411,2]
[354280524,1740393046681,-150.0,0.00015411,2]
[354280525,1740393046691,-150.0,0.00015411,2]
[354280526,1740393046700,-6809.3975363,0.00015411,2]
[354280527,1740393046709,-3265.29843945,0.00015411,2]
[354280528,1740393046718,-53005.49794814,0.00015411,2]
[354280529,1740393046727,-6305.82900967,0.00015411,2]
[354280530,1740393046736,-927.18,0.00015472,2]
[354280531,1740393046745,-49267.03171847,0.000155,7]
[354280532,1740393046754,-31472.68617011,0.000155,2]
[354280533,1740393046767,-152.0,0.00015506,4]
[354280534,1740393046776,-252.77,0.00015516,2]
[354280535,1740393046786,-601.18,0.00015538,2]
[354280536,1740393046795,-790.0,0.00015542,2]
[354280537,1740393046804,-1424.0,0.00015542,2]
[354280538,1740393046813,-908.812,0.00015542,2]
[354280539,1740393046823,-1281.103,0.00015542,2]
[354280540,1740393046834,-543.981,0.00015542,2]
[354280541,1740393046844,-4033.0,0.00015542,2]
[354280542,1740393046853,-1111.0,0.00015542,2]
[354280543,1740393046862,-2028.0,0.00015542,2]
[354280544,1740393046873,-1279.302,0.00015542,2]
[354280545,1740393046882,-150.0,0.00015542,2]
[354280546,1740393046891,-3921.0,0.00015542,2]
[354280547,1740393046901,-927.18,0.00015609,2]
[354280548,1740393046912,-929.53,0.00015611,2]
[354280549,1740393046921,-1000.0,0.00015621,2]
[354280550,1740393046930,-167.45,0.00015624,2]
[354280551,1740393046940,-150.17201952,0.00015682,4]
[354280552,1740393046948,-250.0,0.00015688,2]
[354280553,1740393046957,-232.0,0.00015688,2]
[354280554,1740393046966,-150.309,0.00015688,2]
[354280555,1740393046975,-213.669,0.00015688,2]
[354280556,1740393046984,-150.887,0.00015688,2]
[354280557,1740393046993,-253.427,0.00015688,2]
[354280558,1740393047002,-151.0,0.00015746,2]
[354280559,1740393047011,-151.0,0.00015746,2]
[354280560,1740393047020,-151.341277,0.00015746,2]
[354280561,1740393047030,-927.18,0.00015746,2]
[354280562,1740393047039,-1389.13,0.00015784,2]
[354280563,1740393047048,-206.19411432,0.000158,2]
[354280564,1740393047057,-174.71633812,0.00015836,2]
[354280565,1740393047066,-151.0,0.00015883,2]
[354280566,1740393047075,-927.18,0.00015883,2]
[354280567,1740393047084,-152.0,0.00015926,5]
[354280568,1740393047093,-155.00013763,0.00016,2]
[354280569,1740393047102,-318.24273033,0.00016,10]
[354280570,1740393047111,-151.0,0.0001602,2]
[354280571,1740393047121,-151.831378,0.0001602,2]
[354280572,1740393047130,-927.18,0.0001602,2]
[354280573,1740393047139,-174.71633812,0.00016055,2]
[354280574,1740393047148,-500.0,0.00016081,2]
[354280575,1740393047157,-150.0,0.00016081,2]
[354280576,1740393047166,-150.0,0.00016081,2]
[354280577,1740393047176,-500.0,0.00016081,2]
[354280578,1740393047186,-150.0,0.00016081,2]
[354280579,1740393047195,-150.0,0.00016081,2]
[354280580,1740393047204,-150.0,0.00016081,2]
[354280581,1740393047213,-150.0,0.00016081,2]
[354280582,1740393047222,-500.0,0.00016081,2]
[354280583,1740393047231,-500.0,0.00016108,2]
[354280584,1740393047240,-640.00036646,0.00016108,2]
[354280585,1740393047249,-150.0,0.00016108,2]
[354280586,1740393047259,-150.0,0.00016108,2]
[354280587,1740393047267,-500.0,0.00016108,2]
[354280588,1740393047277,-500.0,0.00016136,2]
[354280589,1740393047286,-200.0,0.00016136,2]
[354280590,1740393047295,-200.74375446,0.00016136,2]
[354280591,1740393047304,-500.0,0.00016136,2]
[354280592,1740393047313,-927.18,0.00016157,2]
[354280593,1740393047322,-500.0,0.00016163,2]
[354280594,1740393047331,-500.0,0.00016163,2]
[354280595,1740393047340,-1000.0,0.00016164,6]
[354280596,1740393047349,-172.456759,0.0001619,2]
[354280597,1740393047358,-500.0,0.00016191,2]
[354280598,1740393047366,-500.0,0.00016191,2]
[354280599,1740393047375,-150.11720763,0.000162,2]
[354280600,1740393047385,-500.0,0.00016218,2]
[354280601,1740393047394,-500.0,0.00016218,2]
[354280602,1740393047403,-500.0,0.00016245,2]
[354280603,1740393047413,-500.0,0.00016245,2]
[354280604,1740393047422,-174.71633812,0.00016247,2]
[354280605,1740393047431,-175.1714618,0.00016247,2]
[354280606,1740393047440,-500.0,0.00016273,2]
[354280607,1740393047449,-500.0,0.00016273,2]
[354280608,1740393047459,-927.18,0.00016294,2]
[354280609,1740393047468,-5000.0,0.000163,15]
[354280610,1740393047477,-162.561618,0.000163,2]
[354280611,1740393047486,-151.0,0.000163,2]
[354280612,1740393047495,-212.221011,0.000163,2]
[354280613,1740393047504,-151.782184,0.000163,2]
[354280614,1740393047513,-151.0,0.000163,2]
[354280615,1740393047522,-151.0,0.000163,2]
[354280616,1740393047531,-851.1318,0.000163,2]
[354280617,1740393047540,-851.1318,0.000163,2]
[354280618,1740393047549,-539.44078486,0.000163,2]
[354280619,1740393047558,-500.0,0.000163,2]
[354280620,1740393047567,-868.72911913,0.00016328,2]
[354280621,1740393047576,-152.0,0.00016346,6]
[354280622,1740393047586,-927.18,0.00016431,2]
[354280623,1740393047595,-500.0,0.00016438,7]
[354280624,1740393047604,-151.0,0.00016438,2]
[354280625,1740393047613,-151.0,0.00016438,2]
[354280626,1740393047622,-151.0,0.00016438,2]
[354280627,1740393047631,-151.0,0.00016438,2]
[354280628,1740393047641,-151.0,0.00016438,2]
[354280629,1740393047650,-151.0,0.00016438,2]
[354280630,1740393047659,-151.0,0.00016438,2]
[354280631,1740393047669,-151.0,0.00016438,2]
[354280632,1740393047678,-151.0,0.00016438,2]
[354280633,1740393047687,-151.0,0.00016438,2]
[354280634,1740393047696,-151.0,0.00016438,2]
[354280635,1740393047706,-151.0,0.00016438,2]
[354280636,1740393047715,-152.335248,0.00016438,2]
[354280637,1740393047724,-152.129028,0.00016438,2]
[354280638,1740393047734,-151.0,0.00016438,2]
[354280639,1740393047743,-151.0,0.00016438,2]
[354280640,1740393047752,-151.0,0.00016438,2]
[354280641,1740393047761,-151.0,0.00016438,2]
[354280642,1740393047771,-152.460698,0.00016438,2]
[354280643,1740393047780,-321.61975232,0.00016438,2]
[354280644,1740393047789,-151.0,0.00016438,2]
[354280645,1740393047798,-151.376158,0.00016438,2]
[354280646,1740393047807,-151.0,0.00016438,2]
[354280647,1740393047816,-162.434691,0.00016438,2]
[354280648,1740393047825,-151.0,0.00016438,2]
[354280649,1740393047837,-151.0,0.00016438,2]
[354280650,1740393047847,-151.0,0.00016438,2]
[354280651,1740393047856,-151.0,0.00016438,2]
[354280652,1740393047867,-151.0,0.00016438,2]
[354280653,1740393047876,-151.0,0.00016438,2]
[354280654,1740393047886,-151.0,0.00016438,2]
[354280655,1740393047896,-151.0,0.00016438,2]
[354280656,1740393047905,-500.0,0.00016438,2]
[354280657,1740393047916,-151.0,0.00016438,2]
[354280658,1740393047926,-151.689576,0.00016438,2]
[354280659,1740393047936,-151.0,0.00016438,2]
[354280660,1740393047946,-151.0,0.00016438,2]
[354280661,1740393047956,-500.0,0.00016438,2]
[354280662,1740393047966,-500.0,0.00016438,2]
[354280663,1740393047975,-500.0,0.00016438,2]
[354280664,1740393047984,-500.0,0.00016438,2]
[354280665,1740393047993,-500.0,0.00016438,2]
[354280666,1740393048003,-500.0,0.00016438,2]
[354280667,1740393048013,-510.90042108,0.00016438,2]
[354280668,1740393048022,-500.0,0.00016438,2]
[354280669,1740393048031,-151.0,0.00016438,2]
[354280670,1740393048041,-151.0,0.00016438,2]
[354280671,1740393048051,-500.0,0.00016438,2]
[354280672,1740393048060,-500.0,0.00016438,2]
[354280673,1740393048070,-500.0,0.00016438,2]
[354280674,1740393048080,-151.0,0.00016438,2]
[354280675,1740393048090,-500.0,0.00016438,2]
[354280676,1740393048099,-500.0,0.00016438,2]
[354280677,1740393048110,-500.0,0.00016438,2]
[354280678,1740393048119,-231.031672,0.00016438,2]
[354280679,1740393048129,-500.0,0.00016438,2]
[354280680,1740393048139,-500.0,0.00016438,2]
[354280681,1740393048341,-500.0,0.00016438,2]
[354280682,1740393048352,-500.0,0.00016438,2]
[354280683,1740393048362,-500.0,0.00016438,2]
[354280684,1740393048372,-500.0,0.00016438,2]
[354280685,1740393048382,-500.0,0.00016438,2]
[354280686,1740393048392,-500.0,0.00016438,2]
[354280687,1740393048402,-500.0,0.00016438,2]
[354280688,1740393048411,-500.0,0.00016438,2]
[354280689,1740393048421,-510.93206945,0.00016438,2]
[354280690,1740393048431,-502.6275973,0.00016438,2]
[354280691,1740393048440,-500.0,0.00016438,2]
[354280692,1740393048450,-500.0,0.00016438,2]
[354280693,1740393048460,-500.0,0.00016438,2]
[354280694,1740393048470,-500.0,0.00016438,2]
[354280695,1740393048479,-500.0,0.00016438,2]
[354280696,1740393048489,-500.0,0.00016438,2]
[354280697,1740393048499,-500.0,0.00016438,2]
[354280698,1740393048508,-171.901977,0.00016438,2]
[354280699,1740393048518,-500.0,0.00016438,2]
[354280700,1740393048527,-171.901977,0.00016438,2]
[354280701,1740393048538,-171.901977,0.00016438,2]
[354280702,1740393048548,-500.0,0.00016438,2]
[354280703,1740393048558,-500.0,0.00016438,2]
[354280704,1740393048567,-171.901977,0.00016438,2]
[354280705,1740393048577,-171.901977,0.00016438,2]
[354280706,1740393048586,-171.901977,0.00016438,2]
[354280707,1740393048595,-151.0,0.00016438,2]
[354280708,1740393048605,-151.0,0.00016438,2]
[354280709,1740393048614,-500.0,0.00016438,2]
[354280710,1740393048624,-151.0,0.00016438,2]
[354280711,1740393048633,-500.0,0.00016438,2]
[354280712,1740393048643,-151.0,0.00016438,2]
[354280713,1740393048652,-151.0,0.00016438,2]
[354280714,1740393048661,-500.0,0.00016438,2]
[354280715,1740393048670,-151.0,0.00016438,2]
[354280716,1740393048680,-500.0,0.00016438,2]
[354280717,1740393048689,-500.0,0.00016438,2]
[354280718,1740393048699,-500.0,0.00016438,2]
[354280719,1740393048708,-500.7398391,0.00016438,2]
[354280720,1740393048717,-500.0,0.00016438,2]
[354280721,1740393048727,-500.0,0.00016438,2]
[354280722,1740393048736,-151.35504068,0.00016438,2]
[354280723,1740393048746,-200.976492,0.00016438,2]
[354280724,1740393048755,-200.976492,0.00016438,2]
[354280725,1740393048765,-500.0,0.00016438,2]
[354280726,1740393048774,-503.04378016,0.00016438,2]
[354280727,1740393048784,-500.0,0.00016438,2]
[354280728,1740393048793,-500.0,0.00016438,2]
[354280729,1740393048802,-200.976492,0.00016438,2]
[354280730,1740393048813,-200.976492,0.00016438,2]
[354280731,1740393048823,-151.0,0.00016438,2]
[354280732,1740393048834,-151.0,0.00016438,2]
[354280733,1740393048845,-200.976492,0.00016438,2]
[354280734,1740393048855,-151.0,0.00016438,2]
[354280735,1740393048867,-300.56709057,0.00016438,2]
[354280736,1740393048876,-406.53010916,0.00016438,2]
[354280737,1740393048886,-500.0,0.00016438,2]
[354280738,1740393048895,-500.0,0.00016438,2]
[354280739,1740393048905,-500.0,0.00016438,2]
[354280740,1740393048915,-500.0,0.00016438,2]
[354280741,1740393048924,-500.0,0.00016438,2]
[354280742,1740393048934,-500.0,0.00016438,2]
[354280743,1740393048943,-500.0,0.00016438,2]
[354280744,1740393048953,-500.0,0.00016438,2]
[354280745,1740393048962,-500.0,0.00016438,2]
[354280746,1740393048972,-493.38094486,0.00016438,2]
[354280747,1740393048981,-500.0,0.00016438,2]
[354280748,1740393048991,-500.0,0.00016438,2]
[354280749,1740393049000,-500.0,0.00016438,2]
[354280750,1740393049010,-500.0,0.00016438,2]
[354280751,1740393049020,-500.0,0.00016438,2]
[354280752,1740393049032,-500.0,0.00016438,2]
[354280753,1740393049042,-500.0,0.00016438,2]
[354280754,1740393049051,-302.0757398,0.00016438,2]
[354280755,1740393049061,-500.0,0.00016438,2]
[354280756,1740393049071,-500.0,0.00016438,2]
[354280757,1740393049080,-500.0,0.00016438,2]
[354280758,1740393049089,-500.0,0.00016438,2]
[354280759,1740393049098,-500.0,0.00016438,2]
[354280760,1740393049108,-500.0,0.00016438,2]
[354280761,1740393049117,-500.0,0.00016438,2]
[354280762,1740393049127,-151.0,0.00016438,2]
[354280763,1740393049136,-151.0,0.00016438,2]
[354280764,1740393049146,-151.0,0.00016438,2]
[354280765,1740393049155,-168.23852472,0.00016438,2]
[354280766,1740393049164,-151.0,0.00016438,2]
[354280767,1740393049175,-151.0,0.00016438,2]
[354280768,1740393049185,-151.0,0.00016438,2]
[354280769,1740393049195,-500.0,0.00016438,2]
[354280770,1740393049205,-513.04,0.00016438,2]
[354280771,1740393049215,-500.0,0.00016438,2]
[354280772,1740393049225,-502.45985226,0.00016438,2]
[354280773,1740393049236,-500.0,0.00016438,2]
[354280774,1740393049246,-500.0,0.00016438,2]
[354280775,1740393049255,-503.32294385,0.00016438,2]
[354280776,1740393049264,-500.0,0.00016438,2]
[354280777,1740393049275,-500.0,0.00016438,2]
[354280778,1740393049287,-500.0,0.00016438,2]
[354280779,1740393049298,-705.82,0.00016438,2]
[354280780,1740393049308,-500.0,0.00016438,2]
[354280781,1740393049317,-500.0,0.00016438,2]
[354280782,1740393049326,-513.35660094,0.00016438,2]
[354280783,1740393049335,-500.0,0.00016438,2]
[354280784,1740393049345,-500.0,0.00016438,2]
[354280785,1740393049355,-151.0,0.00016438,2]
[354280786,1740393049365,-151.0,0.00016438,2]
[354280787,1740393049374,-151.0,0.00016438,2]
[354280788,1740393049384,-500.0,0.00016438,2]
[354280789,1740393049393,-500.0,0.00016438,2]
[354280790,1740393049403,-500.0,0.00016438,2]
[354280791,1740393049412,-500.0,0.00016438,2]
[354280792,1740393049422,-500.0,0.00016438,2]
[354280793,1740393049431,-500.0,0.00016438,2]
[354280794,1740393049440,-500.0,0.00016438,2]
[354280795,1740393049449,-500.0,0.00016438,2]
[354280796,1740393049458,-568.69,0.00016438,2]
[354280797,1740393049468,-151.0,0.00016438,2]
[354280798,1740393049477,-500.0,0.00016438,2]
[354280799,1740393049486,-151.0,0.00016438,2]
[354280800,1740393049496,-151.691013,0.00016438,2]
[354280801,1740393049505,-500.0,0.00016438,2]
[354280802,1740393049515,-500.0,0.00016438,2]
[354280803,1740393049524,-500.0,0.00016438,2]
[354280804,1740393049535,-236.82039753,0.00016438,2]
[354280805,1740393049544,-500.0,0.00016438,2]
[354280806,1740393049554,-500.0,0.00016438,2]
[354280807,1740393049563,-500.0,0.00016438,2]
[354280808,1740393049572,-500.0,0.00016438,2]
[354280809,1740393049582,-500.0,0.00016438,2]
[354280810,1740393049591,-505.8195853,0.00016438,2]
[354280811,1740393049602,-500.0,0.00016438,2]
[354280812,1740393049612,-500.0,0.00016438,2]
[354280813,1740393049622,-500.0,0.00016438,2]
[354280814,1740393049632,-500.0,0.00016438,2]
[354280815,1740393049641,-500.0,0.00016438,2]
[354280816,1740393049651,-500.0,0.00016438,2]
[354280817,1740393049661,-500.0,0.00016438,2]
[354280818,1740393049671,-502.95119828,0.00016438,2]
[354280819,1740393049680,-500.0,0.00016438,2]
[354280820,1740393049690,-500.0,0.00016438,2]
[354280821,1740393049699,-500.0,0.00016438,2]
[354280822,1740393049709,-500.0,0.00016438,2]
[354280823,1740393049719,-500.0,0.00016438,2]
[354280824,1740393049728,-500.0,0.00016438,2]
[354280825,1740393049738,-613.91,0.00016438,2]
[354280826,1740393049748,-500.0,0.00016438,2]
[354280827,1740393049757,-501.94135267,0.00016438,2]
[354280828,1740393049767,-500.0,0.00016438,2]
[354280829,1740393049776,-561.25220787,0.00016438,2]
[354280830,1740393049787,-500.0,0.00016438,2]
[354280831,1740393049796,-500.0,0.00016438,2]
[354280832,1740393049805,-500.0,0.00016438,2]
[354280833,1740393049815,-460.63640915,0.00016438,2]
[354280834,1740393049825,-506.31055586,0.00016438,2]
[354280835,1740393049837,-500.0,0.00016438,2]
[354280836,1740393049847,-151.0,0.00016438,2]
[354280837,1740393049856,-500.0,0.00016438,2]
[354280838,1740393049867,-151.0,0.00016438,2]
[354280839,1740393049876,-151.0,0.00016438,2]
[354280840,1740393049885,-500.0,0.00016438,2]
[354280841,1740393049894,-151.0,0.00016438,2]
[354280842,1740393049903,-500.0,0.00016438,2]
[354280843,1740393049914,-151.0,0.00016438,2]
[354280844,1740393049923,-484.91825633,0.00016438,2]
[354280845,1740393049932,-500.0,0.00016438,2]
[354280846,1740393049941,-500.0,0.00016438,2]
[354280847,1740393049950,-151.0,0.00016438,2]
[354280848,1740393049960,-151.0,0.00016438,2]
[354280849,1740393049969,-151.0,0.00016438,2]
[354280850,1740393049978,-501.41654875,0.00016438,2]
[354280851,1740393049987,-261.788799,0.00016438,2]
[354280852,1740393049996,-500.0,0.00016438,2]
[354280853,1740393050005,-500.0,0.00016438,2]
[354280854,1740393050014,-500.0,0.00016438,2]
[354280855,1740393050024,-151.0,0.00016438,2]
[354280856,1740393050033,-151.0,0.00016438,2]
[354280857,1740393050042,-300.810499,0.00016438,2]
[354280858,1740393050051,-500.0,0.00016438,2]
[354280859,1740393050061,-504.25330644,0.00016438,2]
[354280860,1740393050070,-500.0,0.00016438,2]
[354280861,1740393050079,-500.0,0.00016438,2]
[354280862,1740393050088,-500.0,0.00016438,2]
[354280863,1740393050097,-505.84878289,0.00016438,2]
[354280864,1740393050106,-187.359585,0.00016438,2]
[354280865,1740393050115,-500.0,0.00016438,2]
[354280866,1740393050124,-187.359585,0.00016438,2]
[354280867,1740393050133,-187.359585,0.00016438,2]
[354280868,1740393050142,-500.0,0.00016438,2]
[354280869,1740393050152,-500.0,0.00016438,2]
[354280870,1740393050161,-500.0,0.00016438,2]
[354280871,1740393050170,-151.0,0.00016438,2]
[354280872,1740393050180,-151.0,0.00016438,2]
[354280873,1740393050189,-500.0,0.00016438,2]
[354280874,1740393050198,-151.530379,0.00016438,2]
[354280875,1740393050207,-187.359585,0.00016438,2]
[354280876,1740393050215,-187.359585,0.00016438,2]
[354280877,1740393050225,-187.359585,0.00016438,2]
[354280878,1740393050234,-151.0,0.00016438,2]
[354280879,1740393050243,-151.0,0.00016438,2]
[354280880,1740393050252,-151.0,0.00016438,2]
[354280881,1740393050261,-151.0,0.00016438,2]
[354280882,1740393050271,-151.0,0.00016438,2]
[354280883,1740393050281,-492.35711781,0.00016438,2]
[354280884,1740393050291,-151.0,0.00016438,2]
[354280885,1740393050301,-500.0,0.00016438,2]
[354280886,1740393050310,-151.0,0.00016438,2]
[354280887,1740393050320,-151.0,0.00016438,2]
[354280888,1740393050329,-500.0,0.00016438,2]
[354280889,1740393050339,-500.0,0.00016438,2]
[354280890,1740393050349,-500.0,0.00016438,2]
[354280891,1740393050358,-500.0,0.00016438,2]
[354280892,1740393050368,-500.0,0.00016438,2]
[354280893,1740393050377,-500.0,0.00016438,2]
[354280894,1740393050386,-500.0,0.00016438,2]
[354280895,1740393050395,-500.0,0.00016438,2]
[354280896,1740393050404,-151.0,0.00016438,2]
[354280897,1740393050413,-151.0,0.00016438,2]
[354280898,1740393050422,-151.0,0.00016438,2]
[354280899,1740393050431,-151.0,0.00016438,2]
[354280900,1740393050440,-500.0,0.00016438,2]
[354280901,1740393050449,-829.52,0.00016438,2]
[354280902,1740393050459,-535.27202155,0.00016438,2]
[354280903,1740393050468,-500.0,0.00016438,2]
[354280904,1740393050477,-500.0,0.00016438,2]
[354280905,1740393050487,-500.0,0.00016438,2]
[354280906,1740393050495,-1000.0,0.00016438,2]
[354280907,1740393050504,-500.0,0.00016438,2]